Cogmind - Beta 16 @@@ ROGUE MODE // 2025.12.08 @ 23:32:26 Player: shapeshifter Result: Destroyed by G-50 Soldier with Heavy Laser Performance ------------- Evolutions (4) 2000 Regions Visited (12) 2400 Robots Destroyed (190) 950 Value Destroyed (5787) 5787 Prototype IDs (32) 640 Alien Tech Used (0) 0 Bonus (1019) 1019 TOTAL SCORE: 12796 Bonus ------- High Alert Combat Kills 121 Follower Combat Kills 257 Registered with UFD 300 Met Optimus in HQ 500 Friendly Fire -159 Cogmind --------- Core Integrity 0/850 Matter 42/300 Energy 100/100 System Corruption 6% Temperature Cool (9) Movement Core (350) Ox6 Location -6/Lower Caves Parts ------- > --- POWER (1) -------- (None) > --- PROPULSION (5) --- (None) > --- UTILITY (7) ------ Large Storage Unit Enhanced Optical Array Advanced Signal Interpreter > --- WEAPON (2) ------- (None) > --- INVENTORY (15) --- Cooled Cesium-ion Thruster Cooled Cesium-ion Thruster Improved Cryofiber Web Huge Storage Unit YI-UF0's Bottomless Matter Pit (916) Advanced Launcher Guidance Computer Matter Filter Transmission Jammer A0-MCA's Component Scanner Tractor Beam Remote Datajack Plasma Cutter CPS Tube (2) CPS Tube (2) DRS Beacon (Expended) Peak State ------------ > --- POWER ------------ Antimatter Reactor > --- PROPULSION ------- Heavy Treads Heavy Treads Cooled Cesium-ion Thruster > --- UTILITY ---------- Advanced Heat Sink Huge Storage Unit Enhanced Optical Array Experimental Terrain Scanner Hardened Heavy Armor Plating Shock Absorption System > --- WEAPON ----------- Heavy Flak Cannon Long-range Missile Launcher > --- INVENTORY -------- Light Angular Momentum Engine Heavy Treads Improved Heavy Siege Treads Improved Cryofiber Web Large Storage Unit YI-UF0's Bottomless Matter Pit Experimental Sensor Array Advanced Launcher Guidance Computer Advanced Launcher Guidance Computer Matter Filter Matter Filter Transmission Jammer Hacking Suite A0-MCA's Component Scanner Tractor Beam 01-MTF's Shockpuncher Remote Datajack Plasma Cutter CPS Tube CPS Tube DRS Beacon [Rating: 91] Favorites ----------- Power Light Angular Momentum Engine Engine Light Angular Momentum Engine Power Core Nuclear Core Reactor Antimatter Reactor Propulsion Medium Treads Treads Medium Treads Leg Flexi-carbon Leg Hover Unit Aerolev Unit Flight Unit Improved VTOL Module Utility Huge Storage Unit Device Improved Heat Sink Storage Huge Storage Unit Processor Advanced Targeting Computer Hackware Hacking Suite Protection Medium Armor Plating Weapon Advanced Beam Cannon Energy Gun Small Laser Energy Cannon Advanced Beam Cannon Ballistic Gun Assault Rifle Ballistic Cannon Heavy Flak Cannon Launcher YI-UF0's Doublenader Special Weapon Remote Datajack Build | -11 -10 -10 -9 -9 -8 -8 -8 -8 -6 -6 -6 -6 ------- Run | Yrd Mat Min Mat Min Mat Sto Rec Scr Fac Was Fac Low Slots Evolved 8 | . . . 2 . 2 . . . 4 . . . Power . | . . . . . . . . . . . . . Propulsion 3 | . . . 1 . 1 . . . 1 . . . Utility 5 | . . . 1 . 1 . . . 3 . . . Weapon . | . . . . . . . . . . . . . Parts Attached 125 | 7 9 3 15 8 25 9 5 7 14 4 17 2 Power 10 | 1 1 . 1 . 3 . . . . 1 3 . Engine 6 | 1 1 . 1 . 2 . . . . . 1 . Core 1 | . . . . . 1 . . . . . . . Reactor 3 | . . . . . . . . . . 1 2 . Propulsion 39 | 2 3 1 6 . 10 5 . 1 5 2 3 1 Treads 34 | 2 2 1 6 . 10 4 . 1 4 2 1 1 Leg 1 | . . . . . . . . . . . 1 . Wheel . | . . . . . . . . . . . . . Hover 1 | . . . . . . . . . 1 . . . Flight 3 | . 1 . . . . 1 . . . . 1 . Utility 44 | 2 3 1 2 5 9 2 2 4 5 . 8 1 Device 14 | 1 1 . . 3 2 . . 3 . . 4 . Storage 7 | 1 2 . . 1 2 . . . . . . 1 Processor 7 | . . . . . 1 1 1 . 1 . 3 . Hackware 2 | . . . . . . . 1 . . . 1 . Protection 14 | . . 1 2 1 4 1 . 1 4 . . . Artifact . | . . . . . . . . . . . . . Weapon 32 | 2 2 1 6 3 3 2 3 2 4 1 3 . Energy Gun 3 | 1 . . 1 . . . 1 . . . . . Energy Cannon 18 | . 2 . 4 2 3 2 1 1 1 1 1 . Ballistic Gun 4 | 1 . . 1 . . . . . 1 . 1 . Ballistic Cannon 2 | . . . . . . . . . 2 . . . Launcher 3 | . . 1 . 1 . . . . . . 1 . Special Weapon 2 | . . . . . . . 1 1 . . . . Impact Weapon . | . . . . . . . . . . . . . Slashing Weapon . | . . . . . . . . . . . . . Piercing Weapon . | . . . . . . . . . . . . . Special Melee Weapon . | . . . . . . . . . . . . . Unidentified Prototypes 14 | . 2 . 2 3 . 2 1 . 2 1 1 . Parts Lost 32 | . 2 . 2 2 3 . . . 1 . 12 10 Power 3 | . 1 . . . . . . . . . 2 . Propulsion 10 | . 1 . 1 1 1 . . . . . 3 3 Utility 13 | . . . 1 1 2 . . . 1 . 4 4 Weapon 6 | . . . . . . . . . . . 3 3 Highest Loss Streak 8 | . 1 . 1 1 1 . . . 1 . 4 8 To Critical Strikes . | . . . . . . . . . . . . . Average Backups 18 | 4 8 12 13 13 19 24 23 22 21 22 20 14 Power 1 | 1 . . . 1 1 1 1 1 1 1 1 . Propulsion 2 | 1 1 1 2 2 2 5 6 2 2 2 2 2 Utility 9 | . 3 7 4 4 8 13 12 13 11 11 10 8 Weapon 3 | . 2 2 5 4 5 4 3 2 2 2 1 . Tool/Special . | . . . . . . . . . . . . . Unused Backups 59 | . 8 . 3 . 15 6 1 9 4 5 . 8 Power 5 | . . . . . 4 . . . 1 . . . Propulsion 14 | . 4 . . . 2 . . 2 2 3 . 1 Utility 26 | . 1 . 2 . 4 5 . 7 1 2 . 4 Weapon 8 | . 2 . 1 . 4 1 . . . . . . Tool/Special 6 | . 1 . . . 1 . 1 . . . . 3 Average Slot Usage (%) 95 | . 97 100 94 99 99 96 96 99 92 89 76 58 Engine 8 | . 13 14 11 11 7 9 9 9 6 4 . 4 Treads 32 | . 27 28 30 32 35 36 36 36 33 30 17 5 Device 12 | . 14 . 10 11 12 9 10 19 9 13 15 10 Storage 9 | . 14 14 11 11 9 9 9 9 6 6 6 6 Processor 3 | . . . . . 1 6 7 5 5 6 9 16 Protection 7 | . . 13 10 10 13 9 1 2 16 13 5 . Energy Cannon 16 | . 25 27 21 21 18 18 13 14 5 6 2 . Peak Build Rating 91 | 8 16 14 18 27 40 49 53 62 75 87 91 86 Average Rating 41 | 5 11 13 16 19 32 46 49 54 71 77 84 57 On Entrance 37 | . 8 13 14 17 21 39 48 51 49 75 85 69 Avg Prop Armor Cover (%) 4 | . . . . . . . . . . . 4 4 Naked Turns . | . . . . . . . . . . . . . Heaviest Build 137 | 14 34 40 43 43 110 119 119 110 130 130 137 106 Greatest Support 162 | 40 40 40 60 60 86 112 112 112 133 162 162 145 Greatest Overweight (x) 6 | . 1 . 1 1 1 1 1 . 1 . 1 6 Average Overweight (x) . | . . . . . . . . . . . . 1 Largest Inventory Capacity 25 | 8 15 15 15 15 25 25 25 25 25 25 25 25 Average Capacity 20 | 7 10 15 15 15 20 25 25 25 25 25 25 23 Most Carried 25 | 7 15 13 15 15 25 25 25 25 25 25 25 18 Average Carried 19 | 4 8 12 14 13 19 24 24 23 24 24 22 15 Final Capacity 25 | 8 15 15 15 15 25 25 25 25 25 25 25 15 Final Carried 25 | 6 12 12 13 14 25 25 24 25 25 25 19 15 Class Distribution -------------------- 36% | Mutant 33% | Scavenger-Mutant 29% | Commander-Mutant Dominant Class ---------------- Mutant | -10/Materials Mutant | -10/Mines Scavenger-Mutant | -9/Materials Scavenger-Mutant | -9/Mines Scavenger-Mutant | -8/Materials Mutant | -8/Storage Commander-Mutant | -8/Recycling Commander-Mutant | -8/Scraptown Commander-Mutant | -6/Factory Scavenger-Mutant | -6/Waste Mutant | -6/Factory Mutant | -6/Lower Caves Resources | -11 -10 -10 -9 -9 -8 -8 -8 -8 -6 -6 -6 -6 ----------- Run | Yrd Mat Min Mat Min Mat Sto Rec Scr Fac Was Fac Low Matter Collected 5756 | 296 110 70 155 821 1264 132 380 289 925 404 910 . Remotely 1583 | . . . . 195 1047 . . 105 236 . . . Salvage Created 7177 | 133 556 42 1129 493 1746 556 675 . 982 . 742 123 Parts 359 | 11 32 . 76 22 81 33 20 . 29 . 47 8 Haulers Intercepted 12 | . . . 2 . 3 4 . . 2 . 1 . Recyclers Shooed 16 | . 1 . 1 1 3 . 3 . 4 . 3 . Parts Field Recycled . | . . . . . . . . . . . . . Retrieved Matter . | . . . . . . . . . . . . . Parts Self-Destructed 5 | . . . . . . . . . . . . 5 Prevented 3 | . . . . . . . . . . . . 3 Parts Restored . | . . . . . . . . . . . . . Kills | -11 -10 -10 -9 -9 -8 -8 -8 -8 -6 -6 -6 -6 ------- Run | Yrd Mat Min Mat Min Mat Sto Rec Scr Fac Was Fac Low Combat Hostiles Destroyed 128 | . 13 9 23 3 25 5 8 . 15 . 23 4 Guns 5 | . . . . . . . . . . . 1 4 Cannons 93 | . 13 3 23 3 23 4 8 . 6 . 10 . AOE 27 | . . 6 . . . . . . 9 . 12 . Classes Destroyed 17 | 2 6 1 3 . 2 . 2 . . . 1 . Worker 8 | . 1 . . 3 1 1 . . 1 . 1 . Builder 11 | . . . 1 . . . . . 2 . 8 . Tunneler 6 | 3 . . 1 1 . . . . 1 . . . Hauler 12 | . . . 2 . 3 4 . . 2 . 1 . Recycler 17 | 1 1 . 1 3 3 1 4 . 2 . 1 . Mechanic 1 | . . . . . 1 . . . . . . . Operator 4 | . 2 . 1 . . 1 . . . . . . Watcher 12 | . 3 . 3 . 3 1 . . 2 . . . Swarmer 23 | . 5 . 8 1 3 . . . . . 3 3 Grunt 44 | . 6 . 7 1 11 3 1 . 7 . 7 1 Sentry 29 | . . . 8 . 9 2 4 . 2 . 4 . Demolisher 1 | . . . . . . . 1 . . . . . Hunter 11 | . . . . . 2 . . . 3 . 6 . Programmer 7 | . . . . . . . 2 . 3 . 2 . Heavy 1 | . . . . . . . . . . . 1 . Subdweller 2 | . 2 . . . . . . . . . . . Assembled 9 | . . 9 . . . . . . . . . . Best Kill Streak 10 | 2 4 8 5 3 6 3 4 . 6 . 10 3 Combat Bots Only 8 | . 3 8 4 1 4 3 3 . 3 . 6 3 Max Kills in Single Turn 4 | 1 1 4 1 1 2 1 1 . 2 . 3 1 Gunslinging . | . . . . . . . . . . . . . Exploded 4 | . . 4 . . . . . . 2 . 3 . Melee . | . . . . . . . . . . . . . Uniques/NPCs Destroyed 1 | . . . . 1 . . . . . . . . YI-UF0 (-9/Mines) Combat | -11 -10 -10 -9 -9 -8 -8 -8 -8 -6 -6 -6 -6 -------- Run | Yrd Mat Min Mat Min Mat Sto Rec Scr Fac Was Fac Low Hostile Shots Fired 968 | . 79 13 97 30 116 50 13 . 155 . 309 106 Missed 327 | . 27 5 31 6 29 21 3 . 47 . 121 37 Hits 641 | . 52 8 66 24 87 29 10 . 108 . 188 69 Projectile 641 | . 52 8 66 24 87 29 10 . 108 . 188 69 AOE 15 | . . . . 12 . . 2 . . . 1 . Critical Strikes 12 | . 1 . . . 2 1 . . 1 . 6 1 Damage Taken 9417 | . 603 142 800 519 1350 473 228 . 1291 . 2761 1250 Core 1250 | . 81 60 59 23 105 57 . . 82 . 249 534 Absorbed by Shields 22 | . . . . . . . . . 22 . . . Redirected to Shielding 121 | . . . . . . . . . 121 . . . Ignored by Resistances 50 | . . . . . . . . . . . 50 . Regen/Repaired (Parts) 324 | . . . . . . . . 324 . . . . Core Remaining (%) 73 | 100 . 43 . 79 . . . 70 . . . . Volleys Fired 579 | 12 55 13 78 28 93 36 67 4 78 1 89 25 Largest 2 | 2 2 2 2 2 2 2 2 1 2 1 2 2 Hottest 175 | 60 136 136 136 136 160 160 170 5 175 85 160 78 Shots Fired 946 | 24 99 19 149 56 179 73 87 4 95 1 126 34 Gun 66 | 24 . . . . . . . . 6 . 9 27 Cannon 780 | . 99 16 149 56 179 73 39 . 72 1 89 7 Launcher 45 | . . 3 . . . . . . 14 . 28 . Special 55 | . . . . . . . 48 4 3 . . . Kinetic 152 | 12 . . . . . . . . 28 . 81 31 Thermal 681 | 12 99 16 149 56 179 73 39 . 44 1 13 . Explosive 45 | . . 3 . . . . . . 14 . 28 . Electromagnetic 13 | . . . . . . . . . 6 . 4 3 Robot Hit Streak 17 | 4 16 3 10 8 15 10 16 17 9 . 8 4 Robot Miss Streak 10 | 3 5 4 10 3 6 4 2 2 8 . 10 7 Penetration Max 1 | . . . . . . . . . . . . 1 Secondary Targets 1 | . . . . . . . . . . . . 1 Max Gunslinging Chain 1 | . . . . . . . . . . . . 1 Shots Hit Robots 556 | 13 56 8 72 30 105 38 68 2 52 . 92 20 Core Hits 374 | 5 22 9 32 12 49 18 12 . 78 . 125 12 Critical Kills 7 | . . . . 1 5 1 . . . . . . Critical Parts Destroyed . | . . . . . . . . . . . . . Critical Strikes 8 | . . . . 1 5 1 . . 1 . . . Meltdown 7 | . . . . 1 5 1 . . . . . . Corrupt 1 | . . . . . . . . . 1 . . . Melee Attacks . | . . . . . . . . . . . . . Impact . | . . . . . . . . . . . . . Slashing . | . . . . . . . . . . . . . Piercing . | . . . . . . . . . . . . . Sneak Attacks . | . . . . . . . . . . . . . Combat Hostiles . | . . . . . . . . . . . . . Follow-up Attacks . | . . . . . . . . . . . . . Damage Inflicted 16022 | 156 1206 626 1523 679 2402 1032 728 . 3013 . 4160 497 Guns 934 | 156 . . . . . . . . 234 . 161 383 Cannons 10444 | . 1206 123 1523 679 2386 1032 728 . 1108 . 1545 114 Explosions 4628 | . . 503 . . . . . . 1671 . 2454 . Melee . | . . . . . . . . . . . . . Ramming 16 | . . . . . 16 . . . . . . . Kinetic 2677 | 102 . . . . . . . . 612 . 1501 462 Thermal 8365 | 54 1206 123 1523 679 2386 1032 728 . 496 . 138 . Explosive 4628 | . . 503 . . . . . . 1671 . 2454 . Electromagnetic 336 | . . . . . . . . . 234 . 67 35 Impact . | . . . . . . . . . . . . . Slashing . | . . . . . . . . . . . . . Piercing . | . . . . . . . . . . . . . Highest Corruption 6 | . . . . . 1 1 5 . 4 4 6 6 Average Corruption 2 | . . . . . 1 1 4 . 2 4 4 6 Corruption Purged . | . . . . . . . . . . . . . Corruption Blocked . | . . . . . . . . . . . . . Effects 105 | . . . . . 12 14 35 . 10 3 26 5 Message Errors 23 | . . . . . . 4 10 . 2 2 4 1 Matter Fused 24 | . . . . . 7 3 6 . 2 . 5 1 Heat Flow Errors 11 | . . . . . 1 . 5 . . . 5 . Energy Discharges 15 | . . . . . 1 . 5 . 4 1 4 . Parts Rejected 1 | . . . . . . . . . . . . 1 Parts Fused 2 | . . . . . . . 1 . . . 1 . Data Loss (minor) 12 | . . . . . 1 3 4 . 1 . 3 . Data Loss (major) 5 | . . . . . 1 1 1 . 1 . 1 . Misfires 6 | . . . . . . 2 2 . . . 2 . Alerts 2 | . . . . . . . 1 . . . . 1 Weapon Failures 4 | . . . . . 1 1 . . . . 1 1 Overload Shots . | . . . . . . . . . . . . . Overflow Damage 313 | . 11 61 28 1 16 . 38 . 52 . 106 . Projectiles 139 | . 11 12 28 1 16 . 38 . 29 . 4 . Explosions 174 | . . 49 . . . . . . 23 . 102 . Melee . | . . . . . . . . . . . . . Knockbacks 28 | . . . . . . . . . 15 . 10 3 Impact . | . . . . . . . . . . . . . Kinetic 28 | . . . . . . . . . 15 . 10 3 Secondary . | . . . . . . . . . . . . . Self-Inflicted Damage 330 | . . 29 . . . . . . 88 . 213 . Shots 10 | . . 1 . . . . . . 4 . 5 . Rammed 5 | . . . . . 5 . . . . . . . Targets Rammed 5 | . . . . . 5 . . . . . . . Kicked . | . . . . . . . . . . . . . Crushed . | . . . . . . . . . . . . . Highest Temperature 402 | . 318 252 399 340 399 227 286 . 402 16 330 57 Average Temperature 105 | . 110 85 91 87 114 70 94 . 152 12 98 22 Received Heat Transfer 2589 | . 123 60 138 93 639 216 . . 307 . 542 471 Effects 22 | . 3 1 1 1 8 . 2 . 6 . . . Shutdowns 4 | . 1 . 1 . 1 . . . 1 . . . Energy Bleed 5 | . 1 1 . . 3 . . . . . . . Interference 9 | . 1 . . . 3 . 2 . 3 . . . Matter Decay 2 | . . . . . 1 . . . 1 . . . Short Circuit 2 | . . . . 1 . . . . 1 . . . Siege Activations . | . . . . . . . . . . . . . Martial Activations . | . . . . . . . . . . . . . Shielding Activations . | . . . . . . . . . . . . . Robots Disrupted . | . . . . . . . . . . . . . Combat Hostiles . | . . . . . . . . . . . . . Robots Corrupted . | . . . . . . . . . . . . . Combat Hostiles . | . . . . . . . . . . . . . Parts Fried 4 | . . . . . . . . . 3 . 1 . Impact Corruptions . | . . . . . . . . . . . . . Robots Melted 7 | . . . . 1 5 1 . . . . . . Combat Hostiles 3 | . . . . . 2 1 . . . . . . Parts Melted 27 | . 4 . 4 2 9 6 . . 2 . . . Heat Transferred 14956 | 125 2183 222 2738 1221 4292 2050 1348 . 592 . 185 . Parts Sabotaged . | . . . . . . . . . . . . . Parts Stolen . | . . . . . . . . . . . . . Parts Stripped . | . . . . . . . . . . . . . Power Chain Reactions . | . . . . . . . . . . . . . Alert | -11 -10 -10 -9 -9 -8 -8 -8 -8 -6 -6 -6 -6 ------- Run | Yrd Mat Min Mat Min Mat Sto Rec Scr Fac Was Fac Low Maximum Alert Level 2 | . . . 1 . 2 . . . 1 . 2 . Low Security (%) 79 | 100 100 100 57 100 38 100 100 . 68 100 57 . Level 1 16 | . . . 42 . 48 . . . 31 . 17 . Level 2 4 | . . . . . 12 . . . . . 24 . Level 3 . | . . . . . . . . . . . . . Level 4 . | . . . . . . . . . . . . . Level 5 . | . . . . . . . . . . . . . High Security . | . . . . . . . . . . . . . Max Security . | . . . . . . . . . . . . . Peak Influence 476 | 5 88 19 311 112 440 184 87 . 270 73 476 . Initial 149 | . . . . 112 . 149 . . . 72 . . Average 91 | . 28 . 146 19 220 63 11 . 106 15 216 . Influence Increases 4676 | 20 367 19 781 192 980 306 276 . 658 1 986 90 Destroy 0b10 Robot/C 2540 | . 220 . 460 120 560 100 200 . 340 . 460 80 Destroy 0b10 Robot/NC 370 | 20 35 . 45 40 65 40 20 . 50 . 55 . Destroy Leader 710 | . 56 . 150 20 184 30 . . 108 . 152 10 Allied During Kill 105 | . . . 2 12 23 . 32 . 36 . . . Successful Hack 60 | . 9 . 18 . 9 10 14 . . . . . Disable Machine 300 | . 15 . 45 . 45 90 . . 30 . 75 . Destroy Structure 381 | . 2 19 1 . 4 21 10 . 79 1 244 . Partial Spotted 30 | . . . . . 15 . . . 15 . . . Lose Combat Pursuer 180 | . 30 . 60 . 75 15 . . . . . . Influence Decreases 4448 | 20 367 19 491 482 626 660 276 . 451 208 528 320 Entered New Map 688 | . . . . 178 . 205 . . . 135 . 170 Time Decay 3267 | 20 347 19 471 284 545 455 256 . 339 73 408 50 Lost Part 320 | . 20 . 20 20 30 . . . 10 . 120 100 Lost Ally 173 | . . . . . 51 . 20 . 102 . . . Squads Dispatched 32 | . 3 . 4 1 3 2 . . 9 . 10 . Investigation 9 | . 2 . 1 . . . . . 2 . 4 . Extermination 3 | . . . . . . . . . 2 . 1 . Reinforcement 14 | . 1 . 3 . 2 1 . . 2 . 5 . Assault 1 | . . . . 1 . . . . . . . . Garrison 5 | . . . . . 1 1 . . 3 . . . Intercept . | . . . . . . . . . . . . . Searches Triggered . | . . . . . . . . . . . . . Construction Impeded 4 | . . . . . . . . . 2 . 2 . Haulers Reinforced 2 | . . . . . . . . . . . 2 . Active Scanning Responses . | . . . . . . . . . . . . . Cargo Convoy Interrupts 1 | . . . . . . . . . 1 . . . Stealth | -11 -10 -10 -9 -9 -8 -8 -8 -8 -6 -6 -6 -6 --------- Run | Yrd Mat Min Mat Min Mat Sto Rec Scr Fac Was Fac Low Distress Signals 14 | . . . 3 . 5 1 . . 4 . 1 . Communications Jammed . | . . . . . . . . . . . . . Distress Signals . | . . . . . . . . . . . . . Times Spotted 210 | . 18 9 33 7 48 32 7 . 22 . 26 8 Peak Tracking Total 9 | . 4 9 4 3 6 6 2 . 5 . 5 5 Tactical Retreats 9 | . 2 . 3 . 3 1 . . . . . . Traps | -11 -10 -10 -9 -9 -8 -8 -8 -8 -6 -6 -6 -6 ------- Run | Yrd Mat Min Mat Min Mat Sto Rec Scr Fac Was Fac Low Traps Triggered 14 | . 1 . 7 . 1 1 . . 3 . 1 . Indirectly . | . . . . . . . . . . . . . Trap Hack Attempts . | . . . . . . . . . . . . . Triggered . | . . . . . . . . . . . . . Disarmed . | . . . . . . . . . . . . . Reprogrammed . | . . . . . . . . . . . . . Reused . | . . . . . . . . . . . . . Traps Extracted . | . . . . . . . . . . . . . Installed . | . . . . . . . . . . . . . Triggered . | . . . . . . . . . . . . . Machines | -11 -10 -10 -9 -9 -8 -8 -8 -8 -6 -6 -6 -6 ---------- Run | Yrd Mat Min Mat Min Mat Sto Rec Scr Fac Was Fac Low Machines Disabled 20 | . 1 . 3 . 3 6 . . 2 . 5 . Max in Single Turn 2 | . 1 . 1 . 1 1 . . 1 . 2 . Garrison Access 3 | . . . . . 1 1 . . . . 1 . Machines Repaired . | . . . . . . . . . . . . . Machines Dismantled . | . . . . . . . . . . . . . Machines Sabotaged . | . . . . . . . . . . . . . Overloaded Fab Kills . | . . . . . . . . . . . . . Hacking | -11 -10 -10 -9 -9 -8 -8 -8 -8 -6 -6 -6 -6 --------- Run | Yrd Mat Min Mat Min Mat Sto Rec Scr Fac Was Fac Low Machines Accessed 52 | . 7 . 10 . 8 7 9 2 3 . 6 . Terminals 31 | . 5 . 6 . 6 5 6 . 2 . 1 . Fabricators . | . . . . . . . . . . . . . Repair Stations . | . . . . . . . . . . . . . Recycling Units 12 | . 2 . 2 . . 1 3 . 1 . 3 . Scanalyzers 3 | . . . 2 . 1 . . . . . . . Garrison Access 4 | . . . . . 1 1 . . . . 2 . Total Hacks 122 | . 14 . 21 . 20 22 19 6 5 . 15 . Successful 61 | . 10 . 12 . 6 9 12 6 1 . 5 . Failed 60 | . 4 . 9 . 13 13 7 . 4 . 10 . Catastrophic 5 | . . . . . 1 . . . 2 . 2 . Database Lockouts 1 | . . . . . 1 . . . . . . . Manual 83 | . 12 . 15 . 16 18 15 . 4 . 3 . Terminals 81 | . 12 . 15 . 16 19 15 . 2 . 2 . Fabricators . | . . . . . . . . . . . . . Repair Stations . | . . . . . . . . . . . . . Recycling Units 19 | . 2 . 3 . . 1 4 . 3 . 6 . Scanalyzers 5 | . . . 3 . 2 . . . . . . . Garrison Access 11 | . . . . . 2 2 . . . . 7 . Terminal Hacks 11 | . 1 . 1 . . 1 1 6 . . 1 . Record 5 | . . . . . . . . 5 . . . . Branch Access Points 1 | . . . . . . . . . . . 1 . Zone Layout 4 | . 1 . 1 . . 1 1 . . . . . Proto ID Catalog 1 | . . . . . . . . 1 . . . . Fabricator Hacks . | . . . . . . . . . . . . . Repair Station Hacks . | . . . . . . . . . . . . . Recycling Unit Hacks 10 | . 2 . 2 . . 1 3 . 1 . 1 . Retrieve Components 10 | . 2 . 2 . . 1 3 . 1 . 1 . Scanalyzer 4 | . . . 3 . 1 . . . . . . . Retrieve Study 4 | . . . 3 . 1 . . . . . . . Garrison Access Hacks 3 | . . . . . 1 1 . . . . 1 . Seal Access 3 | . . . . . 1 1 . . . . 1 . Unauthorized Hacks 33 | . 7 . 6 . 4 6 8 . . . 2 . Terminals 31 | . 7 . 6 . 4 6 8 . . . . . Botnet 10 | . 2 . 1 . 1 2 4 . . . . . Skim 21 | . 5 . 5 . 3 4 4 . . . . . Fabricators . | . . . . . . . . . . . . . Repair Stations . | . . . . . . . . . . . . . Recycling Units 2 | . . . . . . . . . . . 2 . Fedlink 2 | . . . . . . . . . . . 2 . Scanalyzers . | . . . . . . . . . . . . . Garrison Access . | . . . . . . . . . . . . . Data Cores Recovered 1 | . 1 . . . . . . . . . . . Used . | . . . . . . . . . . . . . Hacking Detections 34 | . 2 . 8 . 6 5 6 . 3 . 4 . Full Trace Events 3 | . . . . . . . . . 1 . 2 . Feedback Events . | . . . . . . . . . . . . . Feedback Blocked . | . . . . . . . . . . . . . Robot Schematics Acquired . | . . . . . . . . . . . . . Robots Built . | . . . . . . . . . . . . . Authchips . | . . . . . . . . . . . . . Time . | . . . . . . . . . . . . . Total Robot Build Rating . | . . . . . . . . . . . . . Part Schematics Acquired . | . . . . . . . . . . . . . Parts Built . | . . . . . . . . . . . . . Authchips . | . . . . . . . . . . . . . Time . | . . . . . . . . . . . . . Total Part Build Rating . | . . . . . . . . . . . . . Part Studies Acquired 4 | . . . 3 . 1 . . . . . . . Parts Repaired . | . . . . . . . . . . . . . Time . | . . . . . . . . . . . . . Parts Recycled . | . . . . . . . . . . . . . Recycled Matter . | . . . . . . . . . . . . . Retrieved Matter . | . . . . . . . . . . . . . Retrieved Components 55 | . 12 . 12 . . 9 12 . 10 . . . Parts Scanalyzed . | . . . . . . . . . . . . . Part Schematics Acquired . | . . . . . . . . . . . . . Parts Damaged . | . . . . . . . . . . . . . Bothacking | -11 -10 -10 -9 -9 -8 -8 -8 -8 -6 -6 -6 -6 ------------ Run | Yrd Mat Min Mat Min Mat Sto Rec Scr Fac Was Fac Low Used RIF Installer . | . . . . . . . . . . . . . Robots Hacked 5 | . . . . . . . 1 2 2 . . . Non-combat 2 | . . . . . . . . . 2 . . . Combat 3 | . . . . . . . 1 2 . . . . Robot Hacks Applied 5 | . . . . . . . 1 2 2 . . . parse_system 3 | . . . . . . . 1 2 . . . . find_chute 2 | . . . . . . . . . 2 . . . Relay Couplers Released 2 | . . . . . . 2 . . . . . . Machine Destruction 2 | . . . . . . 2 . . . . . . Fabnet Peak Effective % . | . . . . . . . . . . . . . Robots Rewired 19 | . . . . . . . 19 . . . . . Allies Hacked . | . . . . . . . . . . . . . Hacks Repelled . | . . . . . . . . . . . . . Allies | -11 -10 -10 -9 -9 -8 -8 -8 -8 -6 -6 -6 -6 -------- Run | Yrd Mat Min Mat Min Mat Sto Rec Scr Fac Was Fac Low Total Allies 24 | . . 1 . 4 . . 19 . . . . . Largest Group 17 | . . 1 1 4 4 . 17 17 17 . . . Highest-Rated Group 251 | . . 31 31 71 71 . 251 251 251 . . . Highest-Rated Ally 34 | . . 31 31 31 31 . 34 34 34 . . . Total Orders 4 | . . . . . . . . 4 . . . . STAY 2 | . . . . . . . . 2 . . . . FOLLOW 2 | . . . . . . . . 2 . . . . Ally Attacks 85 | . . . . 13 50 . 8 . 14 . . . Total Damage 985 | . . . . 168 408 . 115 . 294 . . . Kills 16 | . . . . 5 6 . 2 . 3 . . . Allies Corrupted . | . . . . . . . . . . . . . Allies Melted . | . . . . . . . . . . . . . Intel | -11 -10 -10 -9 -9 -8 -8 -8 -8 -6 -6 -6 -6 ------- Run | Yrd Mat Min Mat Min Mat Sto Rec Scr Fac Was Fac Low Active Infowar (turns) 3974 | 30 409 . . 1 1 . 246 703 942 394 1142 106 Optics 950 | . . . . . . . . . . . 844 106 Sensors 1042 | . . . . 1 . . 246 702 . . . 93 Terrain 2180 | . . . . . 1 . . 1 942 394 842 . Seismic 439 | 30 409 . . . . . . . . . . . Robot Analysis Total . | . . . . . . . . . . . . . Derelict Logs Recovered 4 | . . 1 . 3 . . . . . . . . Drone Launches . | . . . . . . . . . . . . . Drone Recoveries . | . . . . . . . . . . . . . Exploration | -11 -10 -10 -9 -9 -8 -8 -8 -8 -6 -6 -6 -6 ------------- Run | Yrd Mat Min Mat Min Mat Sto Rec Scr Fac Was Fac Low Turns Passed 16145 | 218 1258 869 1508 1524 1918 1563 1524 3053 1068 394 1142 106 Spaces Moved 8122 | 111 614 506 690 820 888 694 753 1789 468 234 544 11 Core 15 | 13 . . . . . . . . . . . 2 Treads 8107 | 98 614 506 690 820 888 694 753 1789 468 234 544 9 Legs . | . . . . . . . . . . . . . Wheels . | . . . . . . . . . . . . . Hover . | . . . . . . . . . . . . . Flight . | . . . . . . . . . . . . . Fastest Speed 50 | 50 160 160 160 160 148 160 160 156 154 155 155 170 Average Speed 164 | 147 162 160 173 160 164 193 167 158 156 158 158 228 Slowest Speed 350 | 160 240 160 240 200 212 240 240 160 236 159 240 350 Overloaded Moves . | . . . . . . . . . . . . . Propulsion Burnouts . | . . . . . . . . . . . . . Robots Hopped . | . . . . . . . . . . . . . Potential Cave-ins 6 | . . . . . . . . . 2 . 4 . Cave-ins Triggered . | . . . . . . . . . . . . . Exploration Rate (%) 64 | 6 82 98 73 98 68 93 97 88 15 93 27 5 Regions Visited 12 Branch Regions 6 Pre-discovered Areas 11 | . 3 . 5 1 . 1 . . . . 1 . Known Exits Taken 6 | . 1 1 1 . . 1 . 1 . . 1 . Unknown Exits Taken 4 | 1 . . . 1 1 . 1 . . . . . Scrap Searched 6 | . . 1 . 1 . . . 4 . . . . Spaces Dug 33 | . . . . . 2 2 . . 7 . 22 . Terrain Destroyed 509 | . . 34 . 1 2 20 10 . 97 1 344 . Melee . | . . . . . . . . . . . . . Projectile 60 | . . . . 1 2 20 10 . 21 1 5 . AOE 449 | . . 34 . . . . . . 76 . 339 . Terrain Rammed . | . . . . . . . . . . . . . Walls Destroyed . | . . . . . . . . . . . . . Machines Disabled . | . . . . . . . . . . . . . Actions | -11 -10 -10 -9 -9 -8 -8 -8 -8 -6 -6 -6 -6 --------- Run | Yrd Mat Min Mat Min Mat Sto Rec Scr Fac Was Fac Low Total 9999 | 142 782 545 857 973 1177 847 955 1999 703 261 701 57 Wait 765 | . 67 21 28 105 84 82 103 153 84 . 26 12 Move 8111 | 110 613 505 689 819 887 693 752 1788 468 233 543 11 Hop . | . . . . . . . . . . . . . Pick Up 184 | 13 22 1 25 5 40 11 8 21 18 6 13 1 Fast Attach 20 | . . . 3 . 3 2 . 1 5 5 1 . Attach 71 | 7 6 . 15 3 5 . 4 2 10 . 15 4 Detach 6 | . 1 . . . . . 2 . 1 . 1 1 Swap 106 | . 4 4 6 10 24 8 10 11 23 1 4 1 Drop 149 | . 14 1 13 3 36 15 9 19 16 13 9 1 Fire 579 | 12 55 13 78 28 93 36 67 4 78 1 89 25 Melee . | . . . . . . . . . . . . . Ram . | . . . . . . . . . . . . . Kick . | . . . . . . . . . . . . . Crush 5 | . . . . . 5 . . . . . . . Escape Stasis . | . . . . . . . . . . . . . Rewire 2 | . . . . . . . . . . 2 . . Trap . | . . . . . . . . . . . . . Miscellaneous 1 | . . . . . . . . . . . . 1 Route ------- -11/Scrapyard -10/Materials (discovered 5 exits: *Mat x3 / *Min / *Sub) -10/Mines (discovered 4 exits: *Mat x2 / [*Exi] / *Sub) -9/Materials (discovered 4 exits: *Mat x2 / *Min x2) -9/Mines (discovered 2 exits: *Mat x2) -8/Materials (discovered 4 exits: *Fac x2 / *Sto x2) -8/Storage (discovered 2 exits: *Fac / *Rec) -8/Recycling (discovered 2 exits: *Fac / *Scr) -8/Scraptown (discovered 2 exits: *Fac x2) -6/Factory (discovered 2 exits: *Low / *Ext) -6/Waste -6/Factory (discovered 6 exits: [*Fac x2] / *Low x2 / Ext x2) -6/Lower Caves History --------- Turn | Location | Event 6 | -11/Scrapyard | Discovered new exit (range 15) 219 | -11/Scrapyard | Entered Materials 304 | -10/Materials | Build established: Mutant 474 | -10/Materials | Discovered new exit (range 13) 556 | -10/Materials | Discovered new exit (range 6) 667 | -10/Materials | Learned location of 2 exits from Mines 728 | -10/Materials | Identified exit to Materials 780 | -10/Materials | Learned location of Storage (-8) 819 | -10/Materials | Derelicts attacked the area 821 | -10/Materials | Identified exit to Subcaves 851 | -10/Materials | Identified exit to Mines 883 | -10/Materials | Learned location of Mines (-10) 901 | -10/Materials | Learned location of 2 exits from Subcaves 930 | -10/Materials | Learned location of Subcaves (-10) 970 | -10/Materials | Learned Storage garrison access intel 1477 | -10/Materials | Entered Mines 1484 | -10/Mines | Learned 4 Materials zone layouts 1496 | -10/Mines | Assembled infested the area 1501 | -10/Mines | Assisted by a Guerilla fighting off Assembled 1530 | -10/Mines | Core integrity fell below 50% 1566 | -10/Mines | Destroyed 8 combat bots 2049 | -10/Mines | Received a Rocket Launcher from a helpful Derelict 2136 | -10/Mines | Deemed a non-threat by the Exiles lab entrance 2136 | -10/Mines | Discovered new exit (range 5) 2175 | -10/Mines | Discovered exit to Subcaves (range 5) 2211 | -10/Mines | Received a Mining Laser from a helpful Derelict 2346 | -10/Mines | Entered Materials 2346 | -9/Materials | Accompanied by 1 ally 2346 | -9/Materials | Evolved 2 slots: Propulsion x1, Utility x1 2347 | -9/Materials | Identified exit to Mines 2844 | -9/Materials | Discovered new exit (range 4) 3005 | -9/Materials | Build established: Scavenger-Mutant 3317 | -9/Materials | Discovered new exit (range 15) 3377 | -9/Materials | Learned location of Zion (-7) 3455 | -9/Materials | Learned Storage terminal intel 3578 | -9/Materials | Learned location of 1 exit from Recycling 3658 | -9/Materials | Learned location of Recycling (-8) 3819 | -9/Materials | Learned location of 1 exit from Storage 3854 | -9/Materials | Entered Mines 3883 | -9/Mines | YI-UF0 nonchalantly dropped a Grenade Launcher on the ground 4078 | -9/Mines | Destroyed YI-UF0 4094 | -9/Mines | Found Prototype Storage 4096 | -9/Mines | Found Prototype Launcher 4117 | -9/Mines | Identified YI-UF0's Doublenader 4119 | -9/Mines | Identified YI-UF0's Bottomless Matter Pit 4180 | -9/Mines | Met a Derelict testing a Signal Generator 4324 | -9/Mines | Discovered new exit (range 8) 4676 | -9/Mines | Discovered new exit (range 8) 4697 | -9/Mines | Learned location of 1 exit from Materials 4740 | -9/Mines | Assisted by bots powering up and referring to "LRC-V3" 4753 | -9/Mines | Learned 2 Materials zone layouts 4887 | -9/Mines | Found a damaged Exp. Sensor Array with a note attached 4890 | -9/Mines | Found Prototype Device 5095 | -9/Mines | Identified Exp. Sensor Array 5378 | -9/Mines | Entered Materials 5378 | -8/Materials | Accompanied by 4 allies 5378 | -8/Materials | Evolved 2 slots: Propulsion x1, Utility x1 5379 | -8/Materials | Identified exit to Factory 5714 | -8/Materials | Central database locked down 6108 | -8/Materials | Discovered new exit (range 12) 6181 | -8/Materials | Discovered new exit (range 16) 6550 | -8/Materials | Build established: Mutant 6717 | -8/Materials | Garrison activated, responded to threat 6824 | -8/Materials | Discovered exit to Factory (range 4) 7095 | -8/Materials | Build established: Scavenger-Mutant 7296 | -8/Materials | Entered Storage 7297 | -8/Storage | Identified exit to Recycling 7299 | -8/Storage | Loaded intel: 14 terminal locations 7300 | -8/Storage | Loaded intel: 1 garrison access location 7311 | -8/Storage | Met 01-MTF 7350 | -8/Storage | Garrison activated, responded to threat 7696 | -8/Storage | Build established: Mutant 8372 | -8/Storage | Learned location of Armory (-4) 8859 | -8/Storage | Entered Recycling 8859 | -8/Recycling | Accompanied by 1 ally (01-MTF) 8860 | -8/Recycling | Identified exit to Factory 9065 | -8/Recycling | Found Prototype Energy Gun 9070 | -8/Recycling | Identified 01-MTF's Shockpuncher 9433 | -8/Recycling | Build established: Commander-Mutant 10134 | -8/Recycling | Scanned before Scraplab entrance 10301 | -8/Recycling | Entered Scraplab 10314 | -8/Recycling | Discovered new exit (range 2) 10383 | -8/Recycling | Entered Scraptown 10383 | -8/Scraptown | Accompanied by 17 allies 10383 | -8/Scraptown | System corruption cleaned by C-Scrubber 10444 | -8/Scraptown | Visited CR-KLE's Repair Center 10468 | -8/Scraptown | Visited TADAMA 10517 | -8/Scraptown | Visited Cave Peace 10548 | -8/Scraptown | Visited Junk Repository 10583 | -8/Scraptown | Visited Assassins FH 10596 | -8/Scraptown | Visited Symbiants 10664 | -8/Scraptown | Visited UFD Registry 10664 | -8/Scraptown | Registered with UFD as "Technorunner" 10698 | -8/Scraptown | Visited Curators Association 10749 | -8/Scraptown | Visited Derelict Rescue Squad 10759 | -8/Scraptown | Found DRS Beacon 10898 | -8/Scraptown | Visited Observation Area 10918 | -8/Scraptown | Visited Science Guys 10985 | -8/Scraptown | Visited A0-MCA Data Center 10999 | -8/Scraptown | Visited Infowarlord's Domain 11022 | -8/Scraptown | Visited Junk Repository 11055 | -8/Scraptown | Visited Abandonware Association 11073 | -8/Scraptown | Learned abandonware demo "SHUTEYE.EXE" 11073 | -8/Scraptown | Learned abandonware demo "HACKBUD.EXE" 11111 | -8/Scraptown | Visited Research Penetration Think Tank 11785 | -8/Scraptown | Discovered exit to Factory (range 13) 11864 | -8/Scraptown | Heard Great Nut preacher, LISTEN AND RECITE! 12126 | -8/Scraptown | Found Exp. Terrain Scanner 12306 | -8/Scraptown | CR-KLE repaired 8 parts 12489 | -8/Scraptown | Discovered exit to Factory (range 5) 12694 | -8/Scraptown | Given an A rating by A0-MCA 12704 | -8/Scraptown | Found A0-MCA's Component Scanner 13358 | -8/Scraptown | Met Optimus 13358 | -8/Scraptown | Accepted into 0bPrime 13436 | -8/Scraptown | Entered Factory 13436 | -6/Factory | Accompanied by 17 allies 13436 | -6/Factory | Evolved 4 slots: Propulsion x1, Utility x3 13559 | -6/Factory | Garrison activated, responded to threat 13601 | -6/Factory | Lost 12 allies 13742 | -6/Factory | Discovered new exit (range 25) 14005 | -6/Factory | Lost 4 allies 14253 | -6/Factory | Build established: Scavenger-Mutant 14289 | -6/Factory | Cargo convoy interrupted 14497 | -6/Factory | Discovered new exit (range 15) 14504 | -6/Factory | Sucked down chute 14504 | -6/Factory | Entered Waste 14504 | -6/Waste | The area was eerily silent 14866 | -6/Waste | Discovered new exit (range 10) 14898 | -6/Waste | Entered Factory 15126 | -6/Factory | Discovered new exit (range 5) 15158 | -6/Factory | Discovered new exit (range 23) 15217 | -6/Factory | Loaded intel: 8 recycling unit locations 15282 | -6/Factory | Lost 3 parts (1p1u1w) 15331 | -6/Factory | Identified exit to Lower Caves 15331 | -6/Factory | Identified exit to Extension 15454 | -6/Factory | Spotted B-75 Beast 15541 | -6/Factory | Discovered new exit (range 29) 15771 | -6/Factory | Lost 4 parts (2n1u1w) 15905 | -6/Factory | Learned location of Protoforge (-2) 15925 | -6/Factory | Build established: Mutant 16012 | -6/Factory | Lost 3 parts (1p1n1w) 16040 | -6/Factory | Entered Lower Caves 16102 | -6/Lower Caves | Core integrity fell below 50% 16129 | -6/Lower Caves | Activated DRS Beacon 16130 | -6/Lower Caves | Core integrity fell below 20% 16146 | -6/Lower Caves | Destroyed by G-50 Soldier with Heavy Laser Last Messages --------------- 16107_ Slug penetrates G-50 Soldier. 16112_ Hvy. Laser fries itself beyond repair. 16113_ System corrupted: Lgt. Angular Momentum Engine rejected. 16113_ Slug penetrates Wall. 16115_ Slug penetrates G-50 Soldier. 16118_ G-67 Veteran: "INCOMING HOSTILES. DEFEND SHIPMENT RENDEZVOUS PERIMETER." 16119_ Slug penetrates G-50 Soldier. 16121_ G-50 Soldier suffers critical hit (Burn). 16121_ Slug penetrates G-50 Soldier. 16123_ Gauss Rifle destroyed. 16123_ Dropped DRS Beacon. 16129_ DRS Beacon begins transmitting. DRS Beacon narrowcast message: "Please hold, a Derelict Rescue Squad will be with you shortly." 16130_ Acquired DRS Beacon. 16133_ System corrupted: Matter fused (-9). 16133_ Exp. Sensor Array destroyed. Map ----- +----------------------------------------------------+ | ?????????????????????????????????????????????????? | | ?????????????????????????????????????????????????? | | ?????????????????????????????????????????????????? | | ?????????????????????????????????????????????????? | | ?????????????????????????????????????????????????? | | ?????????????????????????????????????????????????? | | ?????????????????????????????????????????????????? | | ?????????????????????????????????????????????????? | | ?????????????????????????????????????????????????? | | ?????????????????????????????????????????????????? | | ?????????????????????????????????????????????????? | | ?????????????????????????????????????????????????? | | ?????????????????????????????????????????????????? | | ?????????????????????????????????????????????????? | | ?????????????????????????????##??????????????????? | | ?????????????????????????????$##?????????????????? | | ???????????????????????????? ??????????????????? | | ???????????????????????????? #??????????????????? | | ???????????????????????????? #?????##???????????? | | ???????????????????????????# ##### #???????????? | | ????????????????????????###% #????????????? | | ????????????????????????? #?????????????? | | ???????????????????###??? #??????????????? | | ???????????????????# ##?# #????????????????? | | ???????????????????# ###ggg #?????????????????? | | ??????????## ###### @ g##?????????????????? | | ??????????# #??????????????????? | | ??????????# #??????????????????? | | ?????????# ####### ##??????????????????? | | ?????? ?????????# #???????????????????? | | ???? ?????????????## = #??????????????????? | | ?????????????????????# ##%= #??????????????????? | | ????????????????????? ##[%% #??????????????????? | | ???????????????????? ## ?????????????????? | | ???????????????????## ### # $##????????????????? | | ????????????????????####?# # #?????????????????? | | ?????????????????????????# # #?????????????????? | | ?????????????????????????? # ?????????????????? | | ??????????????????????????S ? ????????????????? | | ?????????????????????????? ? ???????????????? | | ?????????????????????????? ? ##??????????????? | | ?????????????????????????? ##???????????????? | | ?????????????????????????? ## ? #????????????????? | | ?????????????????????????? ??#? ????????????????? | | ?????????????????????????? ????##????????????????? | | ?????????????????????????? ??????????????????????? | | ?????????????????????????? ??????????????????????? | | ?????????????????????????????????????????????????? | | ?????????????????????????????????????????????????? | | ?????????????????????????????????????????????????? | +----------------------------------------------------+ Best States ------------- Heat Dissipation 75 Energy Generation 21 Energy Capacity 325 Matter Stores 300 Matter Capacity 1800 Sight Range 22 Robot Scan Range 20 Terrain Scan Range 30 Terrain Scan Density 110 Base Temperature (-) 150 Armor Coverage 825 Resistance: EX 25 Utility Shielding 66 Weapon Shielding 66 Evasion (%) 50 Targeting Accuracy 8 Launcher Accuracy 40 Recoil Reduction 5 Matter Filtering 30 Offensive Hacking 10 Authchip Count 4 Item Schematics ----------------- None Robot Schematics ------------------ None Fabricated ------------ Nothing Repaired ---------- Nothing Studied --------- Lgt. Treads | -9/Materials | Hacked Rocket Launcher | -9/Materials | Hacked Imp. Ion Engine | -9/Materials | Hacked Hvy. Particle Cannon | -8/Materials | Hacked Alien Tech Used ----------------- None Achievements -------------- None Challenges ------------ None Game ------ Seed ThrowingJunkCartridge Manual? 0 Play Time 01:38:28 Cumulative 604.3 hours Start 2025.12.08 @ 20:05:27 End 2025.12.08 @ 23:32:26 Sessions 5 Manual Loads 0 Difficulty Rogue Special Mode None Game No. 778 Rogue 778 Adventurer 0 Explorer 0 Win Type - Total 21 Types 10/1/2/2/2/0/2/2/0/0 Lore% 94 Gallery% 90 Achievement% 77 Wizard Run 0 Options --------- Layout 2 ASCII 0 Keyboard 0 Movement Mouse Keybinds 0 Fullscreen 2 Font 24/Smallcaps Map View 50x49 Zoom Use 0% Tactical HUD 1 Map Filters NONE Filters NONE Steam 1 RUN: 4dca8210-2443-401e-86ee-2936455477f4